fUST/lending_fUST_20250818
["ID","MTS","AMOUNT","RATE_DAILY","PERIOD"]
[379946276,1755446552152,563.004184,0.00013699,2]
[379946277,1755446557724,500.0,0.00028767,120]
[379946282,1755446652992,168.010815,0.00018199,2]
[379946283,1755446653495,341.40401388,0.00018234,2]
[379946291,1755446724068,1000.0,0.00017791,2]
[379946293,1755446742577,5665.78812543,0.00017791,2]
[379946294,1755446742599,4334.21187457,0.00017791,2]
[379946298,1755446785925,314.067309,0.00017791,2]
[379946303,1755446839866,1106.5255017,0.00017923,2]
[379946304,1755446844148,-172.1845301,0.00018598,2]
[379946305,1755446844168,-255.0,0.00018622,2]
[379946306,1755446844188,-261.63178041,0.00018662,2]
[379946307,1755446844210,-520.20777099,0.000187,2]
[379946433,1755447032707,-722.98,0.00018796,2]
[379946435,1755447032719,-477.02,0.00018796,2]
[379946437,1755447032728,-300.0,0.00018796,2]
[379946439,1755447032740,-291.61348662,0.00018797,2]
[379946448,1755447032821,-906.48780052,0.00018797,2]
[379946450,1755447032832,-1.89871286,0.00018797,2]
[379946452,1755447032842,-300.0,0.00018797,2]
[379946454,1755447032851,-300.0,0.00018797,2]
[379946456,1755447032861,-300.0,0.00018797,2]
[379946458,1755447032871,-300.0,0.00018797,2]
[379946460,1755447032880,-300.0,0.00018797,2]
[379946462,1755447032890,-347.57669589,0.00018797,2]
[379946464,1755447032899,-32489.32107687,0.000188,2]
[379946466,1755447032909,-16899.07682046,0.000188,2]
[379946468,1755447032920,-13011.65507828,0.000188,2]
[379946968,1755447038066,-17878.91399516,0.000188,2]
[379946971,1755447038079,-2210.3541061,0.000188,2]
[379946973,1755447038089,-2069.87525515,0.000189,2]
[379946975,1755447038099,-155.08190571,0.0001891,2]
[379946977,1755447038108,-500.0,0.00019,2]
[379946979,1755447038118,-876.46537879,0.00019067,2]
[379947000,1755447038320,-159.09339438,0.00019067,2]
[379947003,1755447038331,-336.19630539,0.00019077,2]
[379947005,1755447038341,-13671.42205402,0.00019078,2]
[379947007,1755447038351,-120144.22297461,0.00019078,2]
[379947009,1755447038360,-1035.55877314,0.00019138,2]
[379947011,1755447038369,-17842.522448,0.00019166,2]
[379947013,1755447038378,-516.7285694,0.00019173,2]
[379947015,1755447038388,-500.0,0.00019173,2]
[379947017,1755447038397,-633.27082566,0.00019173,2]
[379947019,1755447038407,-502.38628705,0.00019173,2]
[379947021,1755447038417,-500.0,0.00019173,2]
[379947023,1755447038426,-500.0,0.00019173,2]
[379947025,1755447038436,-300.0,0.00019173,2]
[379947027,1755447038445,-450.0687685,0.00019173,2]
[379947029,1755447038454,-500.0,0.00019173,2]
[379947031,1755447038464,-500.0,0.00019173,2]
[379947033,1755447038474,-500.0,0.00019173,2]
[379947035,1755447038488,-500.0,0.00019173,2]
[379947037,1755447038497,-500.0,0.00019173,2]
[379947039,1755447038507,-500.0,0.00019173,2]
[379947041,1755447038517,-500.0,0.00019173,2]
[379947043,1755447038526,-500.0,0.00019173,2]
[379947045,1755447038536,-500.0,0.00019173,2]
[379947047,1755447038546,-229.94640179,0.00019173,2]
[379947049,1755447038556,-500.0,0.00019173,2]
[379947051,1755447038565,-500.92954421,0.00019173,2]
[379947053,1755447038575,-500.0,0.00019173,2]
[379947055,1755447038585,-500.0,0.00019173,2]
[379947058,1755447038594,-500.0,0.00019173,2]
[379947059,1755447038604,-500.0,0.00019173,2]
[379947062,1755447038613,-500.0,0.00019173,2]
[379947064,1755447038623,-500.0,0.00019173,2]
[379947066,1755447038632,-500.0,0.00019173,2]
[379947068,1755447038642,-500.0,0.00019173,2]
[379947070,1755447038651,-251.16063819,0.00019173,2]
[379947072,1755447038660,-460.0,0.00019178,2]
[379947074,1755447038669,-574.64034321,0.00019178,2]
[379947076,1755447038679,-460.78275101,0.00019178,2]
[379947077,1755447038688,-460.0,0.00019178,2]
[379947080,1755447038698,-463.44041525,0.00019178,2]
[379947082,1755447038707,-460.68199187,0.00019178,2]
[379947084,1755447038717,-461.46880678,0.00019178,2]
[379947085,1755447038726,-460.50048047,0.00019178,2]
[379947087,1755447038736,-460.0,0.00019178,2]
[379947090,1755447038747,-460.2429695,0.00019178,2]
[379947092,1755447038757,-502.13349793,0.00019178,2]
[379947094,1755447038766,-461.40631053,0.00019178,2]
[379947096,1755447038775,-467.77,0.00019178,2]
[379947098,1755447038785,-455.0,0.00019178,2]
[379947100,1755447038795,-460.0,0.00019178,2]
[379947102,1755447038805,-461.87784233,0.00019178,2]
[379947104,1755447038814,-460.0,0.00019178,2]
[379947106,1755447038824,-461.31569487,0.00019178,2]
[379947108,1755447038834,-460.0,0.00019178,2]
[379947110,1755447038844,-461.05622364,0.00019178,2]
[379947112,1755447038853,-460.0,0.00019178,2]
[379947114,1755447038862,-461.74687229,0.00019178,2]
[379947116,1755447038872,-460.1486063,0.00019178,2]
[379947118,1755447038882,-460.0,0.00019178,2]
[379947120,1755447038892,-461.32674324,0.00019178,2]
[379947122,1755447038902,-463.41740911,0.00019178,2]
[379947124,1755447038911,-461.56037808,0.00019178,2]
[379947126,1755447038921,-460.0,0.00019178,2]
[379947128,1755447038933,-462.29242815,0.00019178,2]
[379947130,1755447038946,-461.47963557,0.00019178,2]
[379947132,1755447038956,-463.85049181,0.00019178,2]
[379947134,1755447038966,-506.96849141,0.00019178,2]
[379947136,1755447038975,-461.98037937,0.00019178,2]
[379947138,1755447038985,-464.39061299,0.00019178,2]
[379947140,1755447038996,-445.50639448,0.00019178,2]
[379947142,1755447039006,-460.5894521,0.00019178,2]
[379947144,1755447039016,-463.84183804,0.00019178,2]
[379947146,1755447039028,-461.08199932,0.00019178,2]
[379947148,1755447039038,-460.0,0.00019178,2]
[379947150,1755447039048,-460.33817196,0.00019178,2]
[379947152,1755447039057,-462.76007472,0.00019178,2]
[379947154,1755447039067,-462.35531026,0.00019178,2]
[379947156,1755447039076,-606.63618261,0.00019178,2]
[379947158,1755447039086,-541.53450865,0.00019178,2]
[379947160,1755447039096,-460.45699337,0.00019178,2]
[379947162,1755447039107,-460.64967022,0.00019178,2]
[379947164,1755447039116,-460.0,0.00019178,2]
[379947166,1755447039126,-460.0,0.00019178,2]
[379947168,1755447039135,-460.0,0.00019178,2]
[379947170,1755447039145,-460.93270957,0.00019178,2]
[379947172,1755447039154,-461.60292893,0.00019178,2]
[379947174,1755447039164,-462.65776308,0.00019178,2]
[379947176,1755447039174,-460.64194682,0.00019178,2]
[379947178,1755447039183,-460.87347647,0.00019178,2]
[379947180,1755447039193,-461.81635231,0.00019178,2]
[379947182,1755447039202,-460.49737677,0.00019178,2]
[379947184,1755447039213,-460.54983411,0.00019178,2]
[379947186,1755447039222,-462.97524982,0.00019178,2]
[379947188,1755447039232,-463.38384674,0.00019178,2]
[379947190,1755447039242,-460.40537247,0.00019178,2]
[379947192,1755447039252,-461.27055302,0.00019178,2]
[379947194,1755447039262,-460.54046932,0.00019178,2]
[379947196,1755447039272,-467.57020985,0.00019178,2]
[379947198,1755447039282,-461.92152428,0.00019178,2]
[379947200,1755447039292,-460.42906524,0.00019178,2]
[379947202,1755447039303,-461.05026872,0.00019178,2]
[379947204,1755447039313,-154.0,0.00019178,2]
[379947206,1755447039322,-462.44874231,0.00019178,2]
[379947208,1755447039333,-460.0,0.00019178,2]
[379947211,1755447039343,-460.0,0.00019178,2]
[379947213,1755447039353,-460.0,0.00019178,2]
[379947215,1755447039362,-460.81064125,0.00019178,2]
[379947217,1755447039372,-465.97126011,0.00019178,2]
[379947220,1755447039382,-460.0,0.00019178,2]
[379947222,1755447039391,-460.37860866,0.00019178,2]
[379947223,1755447039401,-462.23082084,0.00019178,2]
[379947226,1755447039411,-460.0,0.00019178,2]
[379947227,1755447039421,-460.0,0.00019178,2]
[379947229,1755447039431,-460.50999925,0.00019178,2]
[379947233,1755447039441,-462.93264732,0.00019178,2]
[379947236,1755447039450,-463.26534147,0.00019178,2]
[379947238,1755447039460,-461.70746503,0.00019178,2]
[379947239,1755447039469,-461.04332696,0.00019178,2]
[379947240,1755447039479,-460.0,0.00019178,2]
[379947241,1755447039488,-464.02881232,0.00019178,2]
[379947242,1755447039499,-464.92126656,0.00019178,2]
[379947243,1755447039508,-463.53955917,0.00019178,2]
[379947244,1755447039518,-461.0578864,0.00019178,2]
[379947245,1755447039527,-467.70980082,0.00019178,2]
[379947247,1755447039536,-461.28378269,0.00019178,2]
[379947249,1755447039546,-461.40300132,0.00019178,2]
[379947251,1755447039555,-460.0,0.00019178,2]
[379947252,1755447039564,-472.77088574,0.00019178,2]
[379947253,1755447039573,-460.0,0.00019178,2]
[379947254,1755447039582,-460.64116734,0.00019178,2]
[379947255,1755447039592,-460.0,0.00019178,2]
[379947256,1755447039601,-461.94064421,0.00019178,2]
[379947257,1755447039611,-464.47419213,0.00019178,2]
[379947258,1755447039620,-460.24723575,0.00019178,2]
[379947259,1755447039630,-460.0,0.00019178,2]
[379947260,1755447039639,-469.33363039,0.00019178,2]
[379947261,1755447039648,-460.43040912,0.00019178,2]
[379947262,1755447039658,-460.0,0.00019178,2]
[379947263,1755447039668,-461.15323988,0.00019178,2]
[379947264,1755447039677,-460.0,0.00019178,2]
[379947265,1755447039687,-460.9985631,0.00019178,2]
[379947266,1755447039696,-480.0,0.00019178,2]
[379947267,1755447039706,-460.0,0.00019178,2]
[379947268,1755447039716,-460.0,0.00019178,2]
[379947269,1755447039726,-480.0,0.00019178,2]
[379947271,1755447039735,-460.0,0.00019178,2]
[379947273,1755447039747,-460.74994509,0.00019178,2]
[379947275,1755447039757,-463.72602179,0.00019178,2]
[379947277,1755447039769,-461.01564493,0.00019178,2]
[379947279,1755447039778,-461.10779397,0.00019178,2]
[379947281,1755447039788,-512.68077934,0.00019178,2]
[379947283,1755447039801,-480.0,0.00019178,2]
[379947285,1755447039811,-461.96658977,0.00019178,2]
[379947287,1755447039821,-480.0,0.00019178,2]
[379947289,1755447039830,-460.0,0.00019178,2]
[379947291,1755447039840,-460.0,0.00019178,2]
[379947293,1755447039850,-460.0,0.00019178,2]
[379947295,1755447039859,-461.12433401,0.00019178,2]
[379947297,1755447039869,-460.0,0.00019178,2]
[379947299,1755447039879,-460.72323671,0.00019178,2]
[379947301,1755447039888,-460.0,0.00019178,2]
[379947303,1755447039897,-480.0,0.00019178,2]
[379947305,1755447039907,-461.08057795,0.00019178,2]
[379947307,1755447039916,-460.0,0.00019178,2]
[379947309,1755447039926,-460.0,0.00019178,2]
[379947311,1755447039935,-151.0,0.00019178,2]
[379947313,1755447039947,-282.50751216,0.00019178,2]
[379947315,1755447039956,-151.0,0.00019178,2]
[379947317,1755447039965,-1003.57548306,0.00019178,2]
[379947319,1755447039974,-460.0,0.00019178,2]
[379947321,1755447039984,-462.38154483,0.00019178,2]
[379947322,1755447039995,-480.0,0.00019178,2]
[379947324,1755447040005,-460.0,0.00019178,2]
[379947326,1755447040014,-460.0,0.00019178,2]
[379947328,1755447040026,-460.0,0.00019178,2]
[379947330,1755447040036,-460.0,0.00019178,2]
[379947332,1755447040045,-460.0,0.00019178,2]
[379947334,1755447040055,-460.50910979,0.00019178,2]
[379947336,1755447040065,-460.0,0.00019178,2]
[379947338,1755447040075,-480.0,0.00019178,2]
[379947340,1755447040084,-460.0,0.00019178,2]
[379947342,1755447040094,-461.23420502,0.00019178,2]
[379947344,1755447040103,-460.0,0.00019178,2]
[379947346,1755447040114,-473.81925101,0.00019178,2]
[379947348,1755447040124,-184.37561849,0.00019178,2]
[379947350,1755447040133,-460.0,0.00019178,2]
[379947352,1755447040144,-460.0,0.00019178,2]
[379947354,1755447040154,-460.0,0.00019178,2]
[379947356,1755447040165,-462.35941369,0.00019178,2]
[379947358,1755447040175,-460.0,0.00019178,2]
[379947360,1755447040184,-420.0,0.00019178,2]
[379947362,1755447040194,-460.0,0.00019178,2]
[379947365,1755447040234,-460.0,0.00019178,2]
[379947367,1755447040245,-460.0,0.00019178,2]
[379947369,1755447040255,-460.0,0.00019178,2]
[379947372,1755447040270,-411.31701299,0.00019178,2]
[379947375,1755447040304,-460.0,0.00019178,2]
[379947377,1755447040314,-435.41006473,0.00019178,2]
[379947379,1755447040324,-461.12355243,0.00019178,2]
[379947381,1755447040335,-460.0,0.00019178,2]
[379947383,1755447040344,-150.81374645,0.00019178,2]
[379947385,1755447040353,-460.0,0.00019178,2]
[379947387,1755447040363,-460.0,0.00019178,2]
[379947389,1755447040372,-460.0,0.00019178,2]
[379947390,1755447040382,-460.0,0.00019178,2]
[379947392,1755447040391,-460.67081987,0.00019178,2]
[379947394,1755447040400,-460.0,0.00019178,2]
[379947396,1755447040410,-460.0,0.00019178,2]
[379947398,1755447040419,-224.88526047,0.00019178,2]
[379947400,1755447040429,-460.0,0.00019178,2]
[379947402,1755447040438,-460.0,0.00019178,2]
[379947404,1755447040447,-460.0,0.00019178,2]
[379947406,1755447040457,-460.57246379,0.00019178,2]
[379947408,1755447040466,-460.0,0.00019178,2]
[379947410,1755447040476,-460.0,0.00019178,2]
[379947412,1755447040486,-460.0,0.00019178,2]
[379947414,1755447040497,-461.03229009,0.00019178,2]
[379947416,1755447040507,-460.0,0.00019178,2]
[379947418,1755447040516,-460.0,0.00019178,2]
[379947420,1755447040526,-460.0,0.00019178,2]
[379947422,1755447040535,-460.0,0.00019178,2]
[379947424,1755447040544,-460.0,0.00019178,2]
[379947426,1755447040554,-461.0812922,0.00019178,2]
[379947428,1755447040563,-461.62506127,0.00019178,2]
[379947430,1755447040573,-460.0,0.00019178,2]
[379947432,1755447040582,-460.0,0.00019178,2]
[379947434,1755447040592,-462.60246909,0.00019178,2]
[379947436,1755447040601,-460.0,0.00019178,2]
[379947438,1755447040610,-460.0,0.00019178,2]
[379947439,1755447040619,-461.1701389,0.00019178,2]
[379947441,1755447040629,-460.0,0.00019178,2]
[379947443,1755447040640,-471.81033165,0.00019178,2]
[379947445,1755447040650,-460.0,0.00019178,2]
[379947447,1755447040660,-460.0,0.00019178,2]
[379947449,1755447040669,-460.0,0.00019178,2]
[379947451,1755447040678,-461.40417511,0.00019178,2]
[379947453,1755447040688,-460.0,0.00019178,2]
[379947455,1755447040697,-460.0,0.00019178,2]
[379947457,1755447040707,-460.0,0.00019178,2]
[379947459,1755447040716,-420.7613972,0.00019178,2]
[379947461,1755447040727,-460.0,0.00019178,2]
[379947463,1755447040736,-208.21639372,0.00019178,2]
[379947481,1755447040904,-460.0,0.00019178,2]
[379947483,1755447040914,-460.0,0.00019178,2]
[379947485,1755447040924,-460.0,0.00019178,2]
[379947487,1755447040934,-567.98593703,0.00019178,2]
[379947489,1755447040945,-603.04155235,0.00019178,2]
[379947491,1755447040956,-460.0,0.00019178,2]
[379947493,1755447040965,-300.79419532,0.00019178,2]
[379947495,1755447040975,-460.0,0.00019178,2]
[379947497,1755447040984,-461.38165557,0.00019178,2]
[379947499,1755447040996,-460.0,0.00019178,2]
[379947501,1755447041006,-255.15,0.00019178,2]
[379947503,1755447041015,-460.0,0.00019178,2]
[379947505,1755447041026,-460.0,0.00019178,2]
[379947507,1755447041035,-480.0,0.00019178,2]
[379947509,1755447041045,-471.10136351,0.00019178,2]
[379947511,1755447041054,-460.0,0.00019178,2]
[379947513,1755447041063,-480.0,0.00019178,2]
[379947515,1755447041073,-461.69058287,0.00019178,2]
[379947517,1755447041082,-526.20455661,0.00019178,2]
[379947519,1755447041091,-460.0,0.00019178,2]
[379947521,1755447041101,-460.0,0.00019178,2]
[379947522,1755447041110,-460.0,0.00019178,2]
[379947524,1755447041119,-461.84696498,0.00019178,2]
[379947526,1755447041128,-460.0,0.00019178,2]
[379947528,1755447041138,-462.58693244,0.00019178,2]
[379947530,1755447041147,-216.404523,0.00019178,2]
[379947532,1755447041156,-460.0,0.00019178,2]
[379947534,1755447041166,-460.0,0.00019178,2]
[379947536,1755447041175,-460.0,0.00019178,2]
[379947538,1755447041184,-442.79970444,0.00019178,2]
[379947540,1755447041194,-151.0,0.00019178,2]
[379947542,1755447041203,-460.0,0.00019178,2]
[379947544,1755447041213,-460.0,0.00019178,2]
[379947546,1755447041222,-460.0,0.00019178,2]
[379947548,1755447041231,-480.0,0.00019178,2]
[379947550,1755447041240,-480.0,0.00019178,2]
[379947552,1755447041252,-461.91726735,0.00019178,2]
[379947554,1755447041262,-460.0,0.00019178,2]
[379947556,1755447041271,-151.0,0.00019178,2]
[379947558,1755447041280,-460.51894854,0.00019178,2]
[379947560,1755447041290,-460.0,0.00019178,2]
[379947562,1755447041299,-480.0,0.00019178,2]
[379947564,1755447041308,-460.0,0.00019178,2]
[379947566,1755447041319,-460.0,0.00019178,2]
[379947568,1755447041328,-460.0,0.00019178,2]
[379947570,1755447041337,-460.0,0.00019178,2]
[379947572,1755447041347,-460.0,0.00019178,2]
[379947574,1755447041357,-460.0,0.00019178,2]
[379947576,1755447041367,-460.0,0.00019178,2]
[379947578,1755447041376,-151.0,0.00019178,2]
[379947580,1755447041386,-463.02299111,0.00019178,2]
[379947582,1755447041396,-460.0,0.00019178,2]
[379947584,1755447041405,-460.0,0.00019178,2]
[379947586,1755447041414,-461.74177837,0.00019178,2]
[379947588,1755447041424,-460.6613279,0.00019178,2]
[379947589,1755447041434,-480.0,0.00019178,2]
[379947591,1755447041443,-151.0,0.00019178,2]
[379947593,1755447041453,-461.40224708,0.00019178,2]
[379947595,1755447041462,-460.0,0.00019178,2]
[379947597,1755447041472,-462.3217943,0.00019178,2]
[379947599,1755447041481,-461.50661989,0.00019178,2]
[379947601,1755447041490,-460.0,0.00019178,2]
[379947603,1755447041502,-463.687172,0.00019178,2]
[379947605,1755447041511,-480.0,0.00019178,2]
[379947607,1755447041521,-460.64618476,0.00019178,2]
[379947609,1755447041531,-466.16550636,0.00019178,2]
[379947611,1755447041540,-480.0,0.00019178,2]
[379947613,1755447041550,-460.0,0.00019178,2]
[379947615,1755447041559,-460.0,0.00019178,2]
[379947617,1755447041569,-461.25008206,0.00019178,2]
[379947619,1755447041578,-460.0,0.00019178,2]
[379947621,1755447041587,-460.0,0.00019178,2]
[379947623,1755447041596,-460.0,0.00019178,2]
[379947625,1755447041606,-467.98867287,0.00019178,2]
[379947627,1755447041615,-460.0,0.00019178,2]
[379947629,1755447041624,-480.0,0.00019178,2]
[379947631,1755447041633,-460.0,0.00019178,2]
[379947633,1755447041642,-460.0,0.00019178,2]
[379947634,1755447041652,-151.0,0.00019178,2]
[379947636,1755447041661,-460.0,0.00019178,2]
[379947638,1755447041670,-460.355042,0.00019178,2]
[379947640,1755447041679,-151.0,0.00019178,2]
[379947642,1755447041689,-460.40074092,0.00019178,2]
[379947645,1755447041698,-460.0,0.00019178,2]
[379947647,1755447041718,-461.23291449,0.00019178,2]
[379947649,1755447041728,-460.0,0.00019178,2]
[379947651,1755447041738,-480.0,0.00019178,2]
[379947653,1755447041748,-530.79081547,0.00019178,2]
[379947655,1755447041758,-461.82624395,0.00019178,2]
[379947657,1755447041768,-460.0,0.00019178,2]
[379947659,1755447041778,-480.0,0.00019178,2]
[379947661,1755447041788,-460.0,0.00019178,2]
[379947663,1755447041798,-480.0,0.00019178,2]
[379947665,1755447041808,-460.75328644,0.00019178,2]
[379947666,1755447041818,-460.0,0.00019178,2]
[379947667,1755447041829,-460.0,0.00019178,2]
[379947668,1755447041840,-480.0,0.00019178,2]
[379947669,1755447041849,-2798.98,0.00019178,2]
[379947670,1755447041859,-461.15994066,0.00019178,2]
[379947671,1755447041869,-461.59361356,0.00019178,2]
[379947672,1755447041879,-461.19605814,0.00019178,2]
[379947673,1755447041889,-461.2280318,0.00019178,2]
[379947674,1755447041898,-460.0,0.00019178,2]
[379947675,1755447041908,-514.95147245,0.00019178,2]
[379947676,1755447041918,-151.0,0.00019178,2]
[379947677,1755447041928,-151.0,0.00019178,2]
[379947678,1755447041939,-545.22962814,0.00019178,2]
[379947679,1755447041951,-460.85978148,0.00019178,2]
[379947680,1755447041961,-460.0,0.00019178,2]
[379947681,1755447041970,-460.61514151,0.00019178,2]
[379947682,1755447041980,-460.0,0.00019178,2]
[379947683,1755447041990,-461.37479086,0.00019178,2]
[379947684,1755447042001,-460.0,0.00019178,2]
[379947685,1755447042011,-460.0,0.00019178,2]
[379947686,1755447042021,-460.0,0.00019178,2]
[379947687,1755447042031,-1000.0,0.00019178,2]
[379947688,1755447042040,-460.0,0.00019178,2]
[379947689,1755447042050,-461.15590411,0.00019178,2]
[379947690,1755447042059,-460.0,0.00019178,2]
[379947691,1755447042069,-460.88303836,0.00019178,2]
[379947692,1755447042079,-461.76506862,0.00019178,2]
[379947693,1755447042088,-460.0,0.00019178,2]
[379947694,1755447042098,-463.06402518,0.00019178,2]
[379947695,1755447042107,-460.0,0.00019178,2]
[379947696,1755447042117,-460.0,0.00019178,2]
[379947697,1755447042126,-461.44260409,0.00019178,2]
[379947698,1755447042136,-460.5788418,0.00019178,2]
[379947699,1755447042146,-460.0,0.00019178,2]
[379947700,1755447042156,-462.05756361,0.00019178,2]
[379947701,1755447042165,-462.90091356,0.00019178,2]
[379947702,1755447042175,-461.7580068,0.00019178,2]
[379947703,1755447042184,-460.0,0.00019178,2]
[379947704,1755447042194,-462.13490131,0.00019178,2]
[379947705,1755447042203,-460.0,0.00019178,2]
[379947706,1755447042213,-460.0,0.00019178,2]
[379947707,1755447042222,-460.0,0.00019178,2]
[379947708,1755447042232,-460.0,0.00019178,2]
[379947709,1755447042241,-460.0,0.00019178,2]
[379947710,1755447042252,-461.33574219,0.00019178,2]
[379947711,1755447042261,-460.0,0.00019178,2]
[379947712,1755447042270,-452.14254679,0.00019178,2]
[379947713,1755447042281,-460.0,0.00019178,2]
[379947714,1755447042290,-460.0,0.00019178,2]
[379947715,1755447042299,-460.0,0.00019178,2]
[379947716,1755447042308,-462.16053369,0.00019178,2]
[379947717,1755447042318,-460.49642858,0.00019178,2]
[379947718,1755447042327,-461.03973688,0.00019178,2]
[379947719,1755447042337,-464.98611621,0.00019178,2]
[379947720,1755447042346,-460.87911682,0.00019178,2]
[379947721,1755447042355,-261.49588744,0.00019178,2]
[379947722,1755447042365,-460.0,0.00019178,2]
[379947723,1755447042374,-151.0,0.00019178,2]
[379947724,1755447042384,-461.04674529,0.00019178,2]
[379947725,1755447042393,-480.0,0.00019178,2]
[379947726,1755447042402,-151.0,0.00019178,2]
[379947727,1755447042412,-460.0,0.00019178,2]
[379947728,1755447042421,-460.0,0.00019178,2]
[379947729,1755447042431,-500.0,0.00019178,2]
[379947731,1755447042440,-460.0,0.00019178,2]
[379947732,1755447042450,-464.93366102,0.00019178,2]
[379947733,1755447042461,-460.0,0.00019178,2]
[379947734,1755447042470,-275.48523855,0.00019178,2]
[379947735,1755447042480,-460.0,0.00019178,2]
[379947736,1755447042490,-151.0,0.00019178,2]
[379947737,1755447042499,-480.0,0.00019178,2]
[379947738,1755447042509,-460.0,0.00019178,2]
[379947739,1755447042519,-461.14793825,0.00019178,2]
[379947740,1755447042528,-151.0,0.00019178,2]
[379947741,1755447042538,-1721.0,0.00019178,2]
[379947742,1755447042547,-460.0,0.00019178,2]
[379947743,1755447042556,-571.94776508,0.00019178,2]
[379947744,1755447042566,-461.87156979,0.00019178,2]
[379947745,1755447042575,-460.48524267,0.00019178,2]
[379947746,1755447042585,-460.81595741,0.00019178,2]
[379947747,1755447042594,-460.0,0.00019178,2]
[379947748,1755447042603,-462.88519975,0.00019178,2]
[379947749,1755447042613,-151.0,0.00019178,2]
[379947750,1755447042622,-460.73808277,0.00019178,2]
[379947751,1755447042631,-460.0,0.00019178,2]
[379947752,1755447042641,-261.347519,0.00019178,2]
[379947753,1755447042651,-460.0,0.00019178,2]
[379947754,1755447042660,-480.0,0.00019178,2]
[379947755,1755447042670,-522.35870611,0.00019178,2]
[379947756,1755447042679,-185.797294,0.00019178,2]
[379947757,1755447042688,-460.0,0.00019178,2]
[379947758,1755447042698,-460.0,0.00019178,2]
[379947759,1755447042707,-460.0,0.00019178,2]
[379947760,1755447042717,-460.0,0.00019178,2]
[379947761,1755447042727,-185.797294,0.00019178,2]
[379947762,1755447042736,-480.0,0.00019178,2]
[379947763,1755447042746,-480.0,0.00019178,2]
[379947764,1755447042756,-461.17394659,0.00019178,2]
[379947765,1755447042766,-151.0,0.00019178,2]
[379947766,1755447042776,-460.0,0.00019178,2]
[379947767,1755447042790,-460.0,0.00019178,2]
[379947768,1755447042800,-3648.89,0.00019178,2]
[379947769,1755447042809,-460.0,0.00019178,2]
[379947770,1755447042820,-460.0,0.00019178,2]
[379947771,1755447042829,-465.94819299,0.00019178,2]
[379947772,1755447042839,-460.0,0.00019178,2]
[379947773,1755447042849,-480.0,0.00019178,2]
[379947774,1755447042859,-460.0,0.00019178,2]
[379947775,1755447042868,-460.0,0.00019178,2]
[379947776,1755447042877,-464.6167897,0.00019178,2]
[379947777,1755447042887,-460.0,0.00019178,2]
[379947778,1755447042896,-460.0,0.00019178,2]
[379947779,1755447042906,-461.78500559,0.00019178,2]
[379947780,1755447042915,-151.0,0.00019178,2]
[379947781,1755447042925,-461.43263622,0.00019178,2]
[379947782,1755447042934,-462.6116394,0.00019178,2]
[379947783,1755447042946,-460.0,0.00019178,2]
[379947784,1755447042956,-151.0,0.00019178,2]
[379947785,1755447042966,-1700.550371,0.00019178,2]
[379947786,1755447042975,-151.0,0.00019178,2]
[379947787,1755447042986,-1700.550371,0.00019178,2]
[379947788,1755447042996,-1700.550371,0.00019178,2]
[379947789,1755447043005,-1700.550371,0.00019178,2]
[379947790,1755447043014,-151.0,0.00019178,2]
[379947791,1755447043026,-151.0,0.00019178,2]
[379947792,1755447043036,-4194.06,0.00019178,2]
[379947794,1755447043046,-4194.06,0.00019178,2]
[379947796,1755447043056,-4194.06,0.00019178,2]
[379947798,1755447043065,-466.75195852,0.00019178,2]
[379947800,1755447043075,-4194.06,0.00019178,2]